fUSD/lending_fUSD_20240329
["ID","MTS","AMOUNT","RATE_DAILY","PERIOD"]
[321007646,1711743074609,-500.0,0.00052602,120]
[321007647,1711743074620,-608.38,0.00052602,120]
[321007648,1711743074629,-1270.9,0.00052602,120]
[321007649,1711743074639,-2497.904685,0.00052602,120]
[321007650,1711743074648,-500.0,0.00052602,120]
[321007651,1711743074657,-421.61858222,0.00052602,120]
[321007652,1711743074667,-1001.79,0.00052602,120]
[321007653,1711743074677,-2497.904679,0.00052602,120]
[321007654,1711743074686,-500.0,0.00052602,120]
[321007655,1711743074696,-704.57,0.00052602,120]
[321007656,1711743074705,-1109.94,0.00052602,120]
[321007657,1711743074714,-500.0,0.00052602,120]
[321007658,1711743074724,-500.0,0.00052602,120]
[321007659,1711743074733,-966.68,0.00052602,120]
[321007660,1711743074742,-500.0,0.00052602,120]
[321007661,1711743074751,-500.0,0.00052602,120]
[321007662,1711743074761,-500.0,0.00052602,120]
[321007663,1711743074771,-763.79,0.00052602,120]
[321007664,1711743074780,-896.89,0.00052602,120]
[321007665,1711743074790,-863.63,0.00052602,120]
[321007666,1711743074799,-500.0,0.00052602,120]
[321007667,1711743074808,-1827.42,0.00052602,120]
[321007668,1711743074817,-1672.3,0.00052602,120]
[321007669,1711743074826,-500.0,0.00052602,120]
[321007670,1711743074836,-500.0,0.00052602,120]
[321007671,1711743074845,-3729.29,0.00052602,120]
[321007672,1711743074854,-151.0,0.00052602,120]
[321007673,1711743074863,-3188.94,0.00052602,120]
[321007674,1711743074872,-500.0,0.00052602,120]
[321007675,1711743074882,-740.79,0.00052602,120]
[321007676,1711743074891,-1494.43,0.00052602,120]
[321007677,1711743074900,-500.0,0.00052602,120]
[321007678,1711743074909,-500.0,0.00052602,120]
[321007679,1711743074918,-2612.0,0.00052602,120]
[321007680,1711743074927,-7249.51,0.00052602,120]
[321007681,1711743074940,-500.0,0.00052602,120]
[321007682,1711743074952,-500.0,0.00052602,120]
[321007683,1711743074961,-500.0,0.00052602,120]
[321007684,1711743074971,-843.2,0.00052602,120]
[321007685,1711743074981,-2680.51,0.00052602,120]
[321007686,1711743074991,-500.0,0.00052602,120]
[321007687,1711743075000,-507.75913462,0.00052602,120]
[321007688,1711743075010,-4459.43,0.00052602,120]
[321007689,1711743075020,-500.0,0.00052602,120]
[321007690,1711743075032,-500.0,0.00052602,120]
[321007691,1711743075042,-1947.08,0.00052602,120]
[321007692,1711743075052,-3624.86,0.00052602,120]
[321007693,1711743075063,-2027.87,0.00052602,120]
[321007694,1711743075072,-1617.65,0.00052602,120]
[321007695,1711743075082,-500.0,0.00052602,120]
[321007696,1711743075091,-1765.5,0.00052602,120]
[321007697,1711743075101,-1764.1,0.00052602,120]
[321007698,1711743075111,-500.0,0.00052602,120]
[321007699,1711743075121,-500.0,0.00052602,120]
[321007700,1711743075131,-957.9,0.00052602,120]
[321007701,1711743075141,-10351.89,0.00052602,120]
[321007702,1711743075151,-13296.96,0.00052602,120]
[321007703,1711743075162,-517.98,0.00052602,120]
[321007704,1711743075172,-1873.21,0.00052602,120]
[321007705,1711743075181,-500.0,0.00052602,120]
[321007706,1711743075190,-504.78,0.00052602,120]
[321007707,1711743075200,-2418.2,0.00052602,120]
[321007708,1711743075209,-2461.01,0.00052602,120]
[321007709,1711743075218,-500.0,0.00052602,120]
[321007710,1711743075231,-2944.8,0.00052602,120]
[321007711,1711743075241,-500.0,0.00052602,120]
[321007712,1711743075251,-1607.86,0.00052602,120]
[321007713,1711743075264,-500.0,0.00052602,120]
[321007714,1711743075274,-500.0,0.00052602,120]
[321007715,1711743075284,-1284.35,0.00052602,120]
[321007716,1711743075294,-500.0,0.00052602,120]
[321007717,1711743075304,-259.17458836,0.00052602,120]
[321007718,1711743075315,-3103.51,0.00052602,120]
[321007719,1711743075324,-500.0,0.00052602,120]
[321007720,1711743075334,-500.0,0.00052602,80]
[321007721,1711743075343,-500.0,0.00052602,120]
[321007722,1711743075353,-500.0,0.00052602,120]
[321007723,1711743075362,-2940.12,0.00052602,120]
[321007724,1711743075371,-500.0,0.00052602,120]
[321007725,1711743075381,-4477.27,0.00052602,120]
[321007726,1711743075390,-500.0,0.00052602,120]
[321007727,1711743075399,-1003.91,0.00052602,120]
[321007728,1711743075408,-500.0,0.00052602,120]
[321007729,1711743075417,-782.17,0.00052602,120]
[321007730,1711743075426,-500.0,0.00052602,120]
[321007731,1711743075436,-500.0,0.00052602,120]
[321007732,1711743075446,-910.45,0.00052602,120]
[321007733,1711743075456,-2328.02,0.00052602,120]
[321007734,1711743075465,-500.0,0.00052602,120]
[321007735,1711743075475,-1584.87,0.00052602,120]
[321007736,1711743075485,-500.0,0.00052602,120]
[321007737,1711743075494,-608.2,0.00052602,120]
[321007738,1711743075503,-500.0,0.00052602,120]
[321007739,1711743075514,-594.05,0.00052602,120]
[321007740,1711743075524,-995.82,0.00052602,120]
[321007741,1711743075533,-500.0,0.00052602,120]
[321007742,1711743075543,-611.38,0.00052602,120]
[321007743,1711743075553,-500.0,0.00052602,120]
[321007744,1711743075563,-571.66,0.00052602,120]
[321007745,1711743075572,-1818.27,0.00052602,120]
[321007746,1711743075581,-4183.91,0.00052602,120]
[321007747,1711743075590,-500.0,0.00052602,120]
[321007748,1711743075599,-500.0,0.00052602,120]
[321007749,1711743075608,-4365.84,0.00052602,21]
[321007750,1711743075617,-500.0,0.00052602,120]
[321007751,1711743075626,-500.0,0.00052602,120]
[321007752,1711743075634,-500.0,0.00052602,120]
[321007753,1711743075643,-500.0,0.00052602,120]
[321007754,1711743075653,-1348.38,0.00052602,120]
[321007755,1711743075662,-854.64,0.00052602,120]
[321007756,1711743075671,-229.36559312,0.00052602,120]
[321007757,1711743075679,-1373.05,0.00052602,120]
[321007758,1711743075688,-1920.43,0.00052602,120]
[321007759,1711743075698,-548.39,0.00052602,120]
[321007760,1711743075708,-4841.11,0.00052602,120]
[321007761,1711743075718,-500.0,0.00052602,120]
[321007762,1711743075728,-500.0,0.00052602,120]
[321007763,1711743075737,-160.581668,0.00052602,45]
[321007764,1711743075747,-1532.21,0.00052602,120]
[321007765,1711743075757,-400.78902836,0.00052602,120]
[321007766,1711743075767,-151.0,0.00052602,30]
[321007767,1711743075777,-3978.71,0.00052602,120]
[321007768,1711743075786,-160.581676,0.00052602,45]
[321007769,1711743075796,-4048.81,0.00052602,120]
[321007770,1711743075806,-500.0,0.00052602,120]
[321007771,1711743075816,-500.0,0.00052602,120]
[321007772,1711743075826,-500.0,0.00052602,60]
[321007773,1711743075836,-500.0,0.00052602,120]
[321007774,1711743075847,-500.0,0.00052602,120]
[321007775,1711743075857,-623.73,0.00052602,120]
[321007776,1711743075866,-10194.33,0.00052602,120]
[321007777,1711743075876,-817.33,0.00052602,120]
[321007778,1711743075885,-500.0,0.00052602,120]
[321007779,1711743075895,-3430.93,0.00052602,120]
[321007780,1711743075906,-500.0,0.00052602,120]
[321007781,1711743075916,-500.0,0.00052602,120]
[321007782,1711743075926,-500.0,0.00052602,2]
[321007783,1711743075937,-1097.14,0.00052602,120]
[321007784,1711743075948,-500.0,0.00052602,120]
[321007785,1711743075958,-388.124049,0.00052602,120]
[321007786,1711743075967,-500.0,0.00052602,120]
[321007787,1711743075977,-500.0,0.00052602,120]
[321007788,1711743075986,-748.48,0.00052602,120]
[321007789,1711743075995,-415.7,0.00052603,30]
[321007790,1711743076005,-572.11,0.00052603,30]
[321007791,1711743076014,-346.42,0.00052603,30]
[321007792,1711743076025,-161.39,0.00052603,30]
[321007793,1711743076034,-1000.0,0.00052619,120]
[321007794,1711743076043,-162.02,0.0005268,15]
[321007795,1711743076053,-150.5,0.0005269,15]
[321007796,1711743076062,-1000.0,0.00052699,120]
[321007797,1711743076071,-2000.0,0.000527,120]
[321007798,1711743076081,-158.95,0.000527,7]
[321007799,1711743076090,-150.0,0.000527,11]
[321007800,1711743076099,-11143.0,0.00052709,3]
[321007801,1711743076109,-1000.0,0.0005278,120]
[321007802,1711743076118,-30118.94253573,0.000528,7]
[321007803,1711743076128,-2946.22816932,0.000528,60]
[321007804,1711743076138,-168.46508714,0.000528,14]
[321007805,1711743076147,-711.62775679,0.00052809,30]
[321007806,1711743076156,-151.0,0.00052822,120]
[321007807,1711743076166,-151.0,0.00052849,120]
[321007808,1711743076176,-153.8837778,0.00052853,60]
[321007809,1711743076185,-1000.0,0.00052861,120]
[321007810,1711743076195,-539.37732361,0.00052876,120]
[321007811,1711743076205,-500.0,0.00052876,120]
[321007812,1711743076214,-500.0,0.00052876,120]
[321007813,1711743076224,-500.0,0.00052876,120]
[321007814,1711743076233,-500.0,0.00052876,120]
[321007815,1711743076243,-500.0,0.00052876,120]
[321007816,1711743076252,-500.0,0.00052876,120]
[321007817,1711743076262,-592.86467328,0.00052876,120]
[321007818,1711743076272,-500.0,0.00052876,120]
[321007819,1711743076281,-500.0,0.00052876,120]
[321007820,1711743076291,-500.0,0.00052876,120]
[321007821,1711743076300,-213.44,0.00052876,120]
[321007822,1711743076309,-500.0,0.00052876,120]
[321007823,1711743076319,-500.0,0.00052876,120]
[321007824,1711743076328,-500.0,0.00052876,120]
[321007825,1711743076337,-500.0,0.00052876,120]
[321007826,1711743076347,-562.2517179,0.00052876,120]
[321007827,1711743076356,-500.0,0.00052876,120]
[321007828,1711743076365,-500.0,0.00052876,120]
[321007829,1711743076377,-500.0,0.00052876,15]
[321007830,1711743076386,-500.0,0.00052876,120]
[321007831,1711743076396,-500.0,0.00052876,120]
[321007832,1711743076405,-500.0,0.00052876,120]
[321007833,1711743076414,-500.0,0.00052876,120]
[321007834,1711743076424,-500.0,0.00052876,120]
[321007835,1711743076433,-500.0,0.00052876,120]
[321007836,1711743076442,-500.0,0.00052876,120]
[321007837,1711743076453,-500.0,0.00052876,120]
[321007838,1711743076462,-500.0,0.00052876,120]
[321007839,1711743076471,-240.04533532,0.00052876,120]
[321007840,1711743076480,-500.0,0.00052876,120]
[321007841,1711743076490,-231.33946416,0.00052876,120]
[321007842,1711743076500,-500.0,0.00052876,120]
[321007843,1711743076510,-500.0,0.00052876,120]
[321007844,1711743076520,-500.0,0.00052876,120]
[321007845,1711743076529,-500.0,0.00052876,120]
[321007846,1711743076539,-500.0,0.00052876,120]
[321007847,1711743076548,-246.48565576,0.00052876,120]
[321007848,1711743076557,-249.73,0.00052876,120]
[321007849,1711743076567,-500.0,0.00052876,120]
[321007850,1711743076576,-500.0,0.00052876,120]
[321007851,1711743076586,-500.0,0.00052876,120]
[321007852,1711743076596,-268.2686607,0.00052876,120]
[321007853,1711743076606,-256.55139912,0.00052876,120]
[321007854,1711743076615,-500.0,0.00052876,120]
[321007855,1711743076626,-500.0,0.00052876,120]
[321007856,1711743076786,-500.0,0.00052876,120]
[321007857,1711743076801,-500.0,0.00052876,120]
[321007858,1711743076811,-233.42535101,0.00052876,120]
[321007859,1711743076821,-500.0,0.00052876,120]
[321007860,1711743076830,-500.0,0.00052876,120]
[321007861,1711743076839,-500.0,0.00052876,120]
[321007862,1711743076848,-500.0,0.00052876,120]
[321007863,1711743076857,-500.0,0.00052876,120]
[321007864,1711743076867,-500.0,0.00052876,120]
[321007865,1711743076876,-500.0,0.00052876,120]
[321007866,1711743076885,-500.0,0.00052876,120]
[321007867,1711743076894,-500.0,0.00052876,120]
[321007868,1711743076903,-500.0,0.00052876,120]
[321007869,1711743076913,-500.0,0.00052876,120]
[321007870,1711743076922,-500.0,0.00052876,120]
[321007871,1711743076931,-383.68891999,0.00052876,120]
[321007872,1711743076945,-500.0,0.00052876,120]
[321007873,1711743076955,-500.0,0.00052876,120]
[321007874,1711743076964,-500.0,0.00052876,120]
[321007875,1711743076973,-500.0,0.00052876,120]
[321007876,1711743076984,-500.0,0.00052876,120]
[321007877,1711743076994,-500.0,0.00052876,120]
[321007878,1711743077004,-500.0,0.00052876,120]
[321007879,1711743077014,-616.13,0.00052876,120]
[321007880,1711743077026,-500.0,0.00052876,120]
[321007881,1711743077037,-500.0,0.00052876,120]
[321007882,1711743077047,-500.0,0.00052876,120]
[321007883,1711743077056,-500.0,0.00052876,120]
[321007884,1711743077066,-500.0,0.00052876,120]
[321007885,1711743077076,-500.0,0.00052876,120]
[321007886,1711743077085,-500.0,0.00052876,120]
[321007887,1711743077095,-500.0,0.00052876,120]
[321007888,1711743077104,-500.0,0.00052876,120]
[321007889,1711743077114,-500.0,0.00052876,120]
[321007890,1711743077123,-525.91577695,0.00052876,120]
[321007891,1711743077133,-500.0,0.00052876,120]
[321007892,1711743077142,-500.0,0.00052876,120]
[321007893,1711743077152,-500.0,0.00052876,120]
[321007894,1711743077161,-500.0,0.00052876,120]
[321007895,1711743077170,-500.0,0.00052876,120]
[321007896,1711743077180,-500.0,0.00052876,120]
[321007897,1711743077190,-500.0,0.00052876,120]
[321007898,1711743077199,-500.0,0.00052876,120]
[321007899,1711743077208,-500.0,0.00052876,120]
[321007900,1711743077218,-500.0,0.00052876,120]
[321007901,1711743077228,-615.02193496,0.00052876,120]
[321007902,1711743077237,-500.0,0.00052876,120]
[321007903,1711743077247,-196.332111,0.00052876,120]
[321007904,1711743077257,-500.0,0.00052876,120]
[321007905,1711743077267,-631.54,0.00052876,120]
[321007906,1711743077277,-500.0,0.00052876,120]
[321007907,1711743077286,-500.0,0.00052876,120]
[321007908,1711743077296,-500.0,0.00052876,120]
[321007909,1711743077306,-590.81679913,0.00052876,120]
[321007910,1711743077316,-500.0,0.00052876,120]
[321007911,1711743077325,-196.33212,0.00052876,120]
[321007912,1711743077335,-1000.0,0.00052876,120]
[321007913,1711743077344,-500.0,0.00052876,120]
[321007914,1711743077354,-500.0,0.00052876,120]
[321007915,1711743077363,-500.0,0.00052876,120]
[321007916,1711743077372,-500.0,0.00052876,120]
[321007917,1711743077382,-500.0,0.00052876,120]
[321007918,1711743077391,-500.0,0.00052876,120]
[321007919,1711743077401,-500.0,0.00052876,120]
[321007920,1711743077410,-500.0,0.00052876,120]
[321007921,1711743077420,-500.0,0.00052876,120]
[321007922,1711743077430,-324.384414,0.00052876,120]
[321007923,1711743077439,-500.0,0.00052876,120]
[321007924,1711743077448,-500.0,0.00052876,120]
[321007925,1711743077458,-500.0,0.00052876,120]
[321007926,1711743077467,-324.384407,0.00052876,120]
[321007927,1711743077476,-500.0,0.00052876,120]
[321007928,1711743077486,-500.0,0.00052876,120]
[321007929,1711743077495,-500.0,0.00052876,120]
[321007930,1711743077505,-500.0,0.00052876,120]
[321007931,1711743077514,-500.0,0.00052876,120]
[321007932,1711743077524,-500.0,0.00052876,120]
[321007933,1711743077534,-500.0,0.00052876,120]
[321007934,1711743077543,-500.0,0.00052876,120]
[321007935,1711743077553,-500.0,0.00052876,120]
[321007936,1711743077563,-500.0,0.00052876,120]
[321007937,1711743077572,-500.0,0.00052876,120]
[321007938,1711743077582,-559.31,0.00052876,120]
[321007939,1711743077591,-500.0,0.00052876,120]
[321007940,1711743077601,-500.0,0.00052876,120]
[321007941,1711743077611,-500.0,0.00052876,120]
[321007942,1711743077621,-500.0,0.00052876,120]
[321007943,1711743077630,-500.0,0.00052876,120]
[321007944,1711743077640,-500.0,0.00052876,120]
[321007945,1711743077650,-500.0,0.00052876,120]
[321007946,1711743077659,-500.0,0.00052876,120]
[321007947,1711743077669,-500.0,0.00052876,120]
[321007948,1711743077679,-500.0,0.00052876,120]
[321007949,1711743077688,-500.0,0.00052876,120]
[321007950,1711743077699,-500.0,0.00052876,120]
[321007951,1711743077708,-500.0,0.00052876,120]
[321007952,1711743077718,-265.30064404,0.00052876,120]
[321007953,1711743077727,-500.0,0.00052876,120]
[321007954,1711743077737,-345.01214302,0.00052876,120]
[321007955,1711743077746,-500.0,0.00052876,120]
[321007956,1711743077757,-500.0,0.00052876,120]
[321007957,1711743077767,-500.0,0.00052876,120]
[321007958,1711743077776,-500.0,0.00052876,120]
[321007959,1711743077786,-246.639279,0.00052876,120]
[321007960,1711743077795,-500.0,0.00052876,120]
[321007961,1711743077805,-500.0,0.00052876,120]
[321007962,1711743077815,-500.0,0.00052876,120]
[321007963,1711743077825,-500.0,0.00052876,120]
[321007964,1711743077834,-500.0,0.00052876,120]
[321007965,1711743077845,-500.0,0.00052876,120]
[321007966,1711743077854,-500.0,0.00052876,120]
[321007967,1711743077864,-500.0,0.00052876,120]
[321007968,1711743077874,-500.0,0.00052876,120]
[321007969,1711743077885,-500.0,0.00052876,120]
[321007970,1711743077895,-500.0,0.00052876,120]
[321007971,1711743077907,-500.0,0.00052876,120]
[321007972,1711743077916,-151.0,0.00052876,30]
[321007973,1711743077926,-500.0,0.00052876,120]
[321007974,1711743077936,-500.0,0.00052876,120]
[321007975,1711743077949,-627.1,0.00052876,120]
[321007976,1711743077959,-531.49854022,0.00052876,120]
[321007977,1711743077968,-500.0,0.00052876,120]
[321007978,1711743077978,-556.0,0.00052876,120]
[321007979,1711743077988,-500.0,0.00052876,120]
[321007980,1711743077999,-500.0,0.00052876,120]
[321007981,1711743078009,-500.0,0.00052876,120]
[321007982,1711743078020,-500.0,0.00052876,120]
[321007983,1711743078030,-500.0,0.00052876,120]
[321007984,1711743078040,-500.0,0.00052876,120]
[321007985,1711743078050,-500.0,0.00052876,120]
[321007986,1711743078060,-500.0,0.00052876,120]
[321007987,1711743078069,-500.0,0.00052876,120]
[321007988,1711743078079,-500.0,0.00052876,120]
[321007989,1711743078089,-503.24,0.00052876,120]
[321007990,1711743078099,-522.80380696,0.00052876,120]
[321007991,1711743078108,-500.0,0.00052876,120]
[321007992,1711743078118,-151.0,0.00052876,120]
[321007993,1711743078127,-500.0,0.00052876,120]
[321007994,1711743078137,-500.0,0.00052876,120]
[321007995,1711743078146,-500.0,0.00052876,120]
[321007996,1711743078155,-500.0,0.00052876,120]
[321007997,1711743078165,-500.0,0.00052876,120]
[321007998,1711743078174,-500.0,0.00052876,120]
[321007999,1711743078183,-500.0,0.00052876,120]
[321008000,1711743078193,-500.0,0.00052876,120]
[321008001,1711743078203,-500.0,0.00052876,120]
[321008002,1711743078212,-500.0,0.00052876,120]
[321008003,1711743078222,-500.0,0.00052876,120]
[321008004,1711743078231,-500.0,0.00052876,120]
[321008005,1711743078240,-500.0,0.00052876,120]
[321008006,1711743078249,-500.0,0.00052876,120]
[321008007,1711743078259,-533.32,0.00052876,120]
[321008008,1711743078268,-462.7,0.00052876,120]
[321008009,1711743078278,-500.0,0.00052876,30]
[321008010,1711743078287,-500.0,0.00052876,120]
[321008011,1711743078297,-500.0,0.00052876,120]
[321008012,1711743078306,-500.0,0.00052876,120]
[321008013,1711743078315,-893.03,0.00052876,120]
[321008014,1711743078325,-500.0,0.00052876,120]
[321008015,1711743078334,-500.0,0.00052876,120]
[321008016,1711743078346,-500.0,0.00052876,120]
[321008017,1711743078355,-500.0,0.00052876,120]
[321008018,1711743078365,-500.0,0.00052876,120]
[321008019,1711743078375,-282.13,0.00052876,120]
[321008020,1711743078385,-500.0,0.00052876,120]
[321008021,1711743078395,-500.0,0.00052876,120]
[321008022,1711743078405,-500.0,0.00052876,120]
[321008023,1711743078414,-500.0,0.00052876,120]
[321008024,1711743078424,-500.0,0.00052876,120]
[321008025,1711743078434,-500.0,0.00052876,120]
[321008026,1711743078444,-500.0,0.00052876,120]
[321008027,1711743078454,-500.0,0.00052876,120]
[321008028,1711743078464,-500.0,0.00052876,120]
[321008029,1711743078473,-500.0,0.00052876,120]
[321008030,1711743078483,-500.0,0.00052876,120]
[321008031,1711743078493,-343.81093,0.00052876,120]
[321008032,1711743078503,-264.65,0.00052876,120]
[321008033,1711743078513,-500.0,0.00052876,120]
[321008034,1711743078522,-532.21,0.00052876,120]
[321008035,1711743078532,-500.0,0.00052876,120]
[321008036,1711743078543,-343.810921,0.00052876,120]
[321008037,1711743078553,-500.0,0.00052876,120]
[321008038,1711743078563,-721.19,0.00052876,120]
[321008039,1711743078572,-500.0,0.00052876,120]
[321008040,1711743078582,-500.0,0.00052876,120]
[321008041,1711743078592,-500.0,0.00052876,120]
[321008042,1711743078602,-500.0,0.00052876,120]
[321008043,1711743078611,-500.0,0.00052876,120]
[321008044,1711743078621,-585.96,0.00052876,120]
[321008045,1711743078631,-294.828451,0.00052876,120]
[321008046,1711743078640,-479.197926,0.00052876,120]
[321008047,1711743078650,-500.0,0.00052876,120]
[321008048,1711743078660,-500.0,0.00052876,120]
[321008049,1711743078671,-500.0,0.00052876,120]
[321008050,1711743078681,-294.828453,0.00052876,120]
[321008051,1711743078693,-479.197927,0.00052876,120]
[321008052,1711743078703,-589.74,0.00052876,120]
[321008053,1711743078712,-500.0,0.00052876,120]
[321008054,1711743078722,-500.0,0.00052876,120]
[321008055,1711743078732,-500.0,0.00052876,120]
[321008056,1711743078741,-500.0,0.00052876,120]
[321008057,1711743078751,-500.0,0.00052876,120]
[321008058,1711743078761,-382.07354444,0.00052876,120]
[321008059,1711743078770,-500.0,0.00052876,120]
[321008060,1711743078780,-500.0,0.00052876,120]
[321008061,1711743078790,-548.85,0.00052876,120]
[321008062,1711743078799,-500.0,0.00052876,120]
[321008063,1711743078809,-627.48,0.00052876,120]
[321008064,1711743078819,-560.18788762,0.00052876,120]
[321008065,1711743078829,-419.08,0.00052876,120]
[321008066,1711743078839,-500.0,0.00052876,120]
[321008067,1711743078849,-500.0,0.00052876,120]
[321008068,1711743078859,-535.34496696,0.00052876,120]
[321008069,1711743078870,-500.0,0.00052876,120]
[321008070,1711743078881,-500.0,0.00052876,120]
[321008071,1711743078891,-500.0,0.00052876,120]
[321008072,1711743078901,-500.0,0.00052876,120]
[321008073,1711743078911,-500.0,0.00052876,120]
[321008074,1711743078920,-500.0,0.00052876,120]
[321008075,1711743078929,-500.0,0.00052876,120]
[321008076,1711743078942,-205.261852,0.00052876,120]
[321008077,1711743078963,-500.0,0.00052876,120]
[321008078,1711743078975,-205.26185,0.00052876,120]
[321008079,1711743078984,-500.0,0.00052876,120]
[321008080,1711743078994,-563.1,0.00052876,120]
[321008081,1711743079005,-500.0,0.00052876,120]
[321008082,1711743079014,-536.31,0.00052876,120]
[321008083,1711743079025,-657.03,0.00052876,120]
[321008084,1711743079034,-500.0,0.00052876,120]
[321008085,1711743079044,-500.0,0.00052876,120]
[321008086,1711743079054,-500.0,0.00052876,120]
[321008087,1711743079063,-500.0,0.00052876,120]
[321008088,1711743079074,-595.73,0.00052876,120]
[321008089,1711743079084,-500.0,0.00052876,120]
[321008090,1711743079093,-500.0,0.00052876,120]
[321008091,1711743079103,-500.0,0.00052876,120]
[321008092,1711743079113,-500.0,0.00052876,120]
[321008093,1711743079123,-305.00491141,0.00052876,120]
[321008094,1711743079133,-500.0,0.00052876,120]
[321008095,1711743079142,-619.71,0.00052876,120]
[321008096,1711743079151,-500.0,0.00052876,2]
[321008097,1711743079161,-500.0,0.00052876,120]
[321008098,1711743079171,-500.0,0.00052876,120]
[321008099,1711743079180,-500.0,0.00052876,120]
[321008100,1711743079190,-500.0,0.00052876,120]
[321008101,1711743079200,-531.09341587,0.00052876,120]
[321008102,1711743079209,-526.73640527,0.00052876,120]
[321008103,1711743079219,-500.0,0.00052876,120]
[321008104,1711743079229,-500.0,0.00052876,120]
[321008105,1711743079239,-500.0,0.00052876,120]
[321008106,1711743079249,-202.66,0.00052876,120]
[321008107,1711743079258,-249.34,0.00052876,120]
[321008108,1711743079269,-500.0,0.00052876,120]
[321008109,1711743079279,-500.0,0.00052876,120]
[321008110,1711743079289,-500.0,0.00052876,120]
[321008111,1711743079298,-589.87,0.00052876,120]
[321008112,1711743079308,-500.0,0.00052876,120]
[321008113,1711743079318,-500.0,0.00052876,120]
[321008114,1711743079327,-500.0,0.00052876,120]
[321008115,1711743079337,-500.0,0.00052876,120]
[321008116,1711743079347,-500.0,0.00052876,120]
[321008117,1711743079357,-500.0,0.00052876,120]
[321008118,1711743079366,-500.0,0.00052876,120]
[321008119,1711743079376,-500.0,0.00052876,120]
[321008120,1711743079386,-500.0,0.00052876,120]
[321008121,1711743079396,-500.0,0.00052876,120]
[321008122,1711743079405,-500.0,0.00052876,120]
[321008123,1711743079415,-500.0,0.00052876,120]
[321008124,1711743079424,-500.0,0.00052876,120]
[321008125,1711743079434,-500.0,0.00052876,120]
[321008126,1711743079445,-500.0,0.00052876,120]
[321008127,1711743079455,-500.0,0.00052876,120]
[321008128,1711743079466,-500.0,0.00052876,120]
[321008129,1711743079476,-421.48,0.00052876,120]
[321008130,1711743079486,-430.7,0.00052876,120]
[321008131,1711743079496,-500.0,0.00052876,120]
[321008132,1711743079505,-500.0,0.00052876,120]
[321008133,1711743079514,-500.0,0.00052876,120]
[321008134,1711743079524,-500.0,0.00052876,120]
[321008135,1711743079533,-500.0,0.00052876,120]
[321008136,1711743079542,-500.0,0.00052876,120]
[321008137,1711743079551,-500.0,0.00052876,120]
[321008138,1711743079561,-500.0,0.00052876,120]
[321008139,1711743079570,-875.16,0.00052876,120]
[321008140,1711743079580,-293.60839781,0.00052876,120]
[321008141,1711743079589,-500.0,0.00052876,120]
[321008142,1711743079780,-500.0,0.00052876,120]
[321008143,1711743079790,-500.0,0.00052876,120]
[321008144,1711743079799,-500.0,0.00052876,120]
[321008145,1711743079810,-514.32,0.00052876,120]